Cogmind - Beta 14 @@@ ROGUE MODE // 2024.09.27 @ 17:38:05 Player: AnotherZach Result: Destroyed by G-67 Veteran with Field Laser Performance ------------- Evolutions (6) 3000 Regions Visited (21) 4200 Robots Destroyed (282) 1410 Value Destroyed (10367) 10367 Prototype IDs (16) 320 Alien Tech Used (0) 0 Bonus (10017) 10017 TOTAL SCORE: 29314 Bonus ------- Triggered High Security 500 High Alert Combat Kills 3955 Follower Combat Kills 4583 Entered Garrisons 800 Used RIF Installer 1000 Entered DSFs 500 Friendly Fire -1321 Cogmind --------- Core Integrity 0/1150 Matter 227/300 Energy 91/100 System Corruption 16% Temperature Cool (9) Movement Hovering (140) Location -4/Extension Parts ------- > --- POWER (2) -------- (None) > --- PROPULSION (6) --- Heavy Siege Treads Hovering Antigrav-FC Exoskeleton > --- UTILITY (8) ------ Armored Scrap Engine Advanced Heat Sink Advanced Signal Interpreter Experimental Core Analyzer Graphene Brace System Guard > --- WEAPON (3) ------- Phasing Sabre > --- INVENTORY (5) ---- Hybrid Antimatter Reactor Cesium-ion Thruster Advanced Transmission Jammer Peak State ------------ > --- POWER ------------ Neutrino-Nuclear Core > --- PROPULSION ------- Hovering Antigrav-FC Exoskeleton > --- UTILITY ---------- Armored Scrap Engine Improved Cooling System Huge Storage Unit Experimental Targeting Computer Experimental Core Analyzer System Guard System Guard > --- WEAPON ----------- Hardcell Cannon Hpw. Laser Phase Construct/G Hpw. KE Gauss Construct/C > --- INVENTORY -------- Antimatter Reactor Light Antimatter Reactor Hybrid Antimatter Reactor Heavy Treads Advanced Medium Treads Advanced Medium Treads Heavy Siege Treads High-capacity Storage Unit High-capacity Matter Pod Structural Scanner Experimental Sensor Array Advanced Signal Interpreter Advanced Transmission Jammer Advanced Transmission Jammer ECM Suite Improved Cloaking Device Improved Medium Armor Plating Layered Light Armor Plating Graphene Brace Long-range Tractor Beam Coil Gun Hardcell Cannon [Rating: 132] Favorites ----------- Power Constructs Engine Heavy Ion Engine Power Core Constructs Reactor Light Antimatter Reactor Propulsion Constructs Treads Light Treads Leg Aluminum Leg Wheel Compact Wheel Hover Unit Constructs Flight Unit Field Propulsion Drive Utility Huge Storage Unit Device Armored Scrap Engine Storage Huge Storage Unit Processor Advanced Targeting Computer Hackware Relay Coupler [Grunt] Protection Hardened Light Armor Plating Weapon Constructs Energy Gun Constructs Energy Cannon Advanced Beam Cannon Ballistic Gun Heavy Assault Rifle Ballistic Cannon Constructs Launcher Long-range Missile Launcher Special Weapon Remote Datajack Slashing Weapon Phasing Sabre Piercing Weapon Heavy Pick Special Melee Weapon Datajack Build | -11 -10 -10 -9 -9 -9 -7 -7 -7 -7 -7 -7 -7 -6 -6 -6 -5 -5 -4 -4 -4 -4 ------- Run | Yrd Mat Min Mat Sto Rec Fac Gar Fac Gar Fac DSF Gar Fac Was Fac Fac Gar Fac Was Fac Ext Slots Evolved 12 | . . . 2 . . 4 . . . . . . 2 . . 2 . 2 . . . Power 1 | . . . . . . . . . . . . . 1 . . . . . . . . Propulsion 4 | . . . 1 . . 2 . . . . . . . . . 1 . . . . . Utility 6 | . . . 1 . . 2 . . . . . . . . . 1 . 2 . . . Weapon 1 | . . . . . . . . . . . . . 1 . . . . . . . . Parts Attached 253 | 7 15 2 35 8 3 4 7 2 10 . . 3 11 19 4 3 14 2 10 54 40 Power 21 | 1 2 . 1 1 1 . . 1 . . . . 3 . . . 2 . . 5 4 Engine 10 | 1 2 . 1 1 1 . . . . . . . 2 . . . 1 . . . 1 Core 4 | . . . . . . . . 1 . . . . . . . . . . . 3 . Reactor 7 | . . . . . . . . . . . . . 1 . . . 1 . . 2 3 Propulsion 40 | 2 4 . 12 3 . 2 1 . . . . . . . . . 2 . . 4 10 Treads 30 | . 1 . 12 3 . 2 1 . . . . . . . . . . . . 3 8 Leg 4 | 2 . . . . . . . . . . . . . . . . 2 . . . . Wheel 3 | . 3 . . . . . . . . . . . . . . . . . . . . Hover . | . . . . . . . . . . . . . . . . . . . . . . Flight 3 | . . . . . . . . . . . . . . . . . . . . 1 2 Utility 99 | 2 4 2 12 1 1 2 1 1 5 . . 2 5 8 1 1 4 2 4 23 18 Device 51 | 1 1 1 4 . 1 1 . 1 3 . . 2 3 6 . 1 2 . 3 11 10 Storage 9 | 1 2 . . . . . . . 1 . . . 1 2 . . . . . 1 1 Processor 13 | . . . 3 . . 1 1 . 1 . . . . . . . . . . 2 5 Hackware 13 | . . . . . . . . . . . . . 1 . . . 2 1 1 6 2 Protection 13 | . 1 1 5 1 . . . . . . . . . . 1 . . 1 . 3 . Artifact . | . . . . . . . . . . . . . . . . . . . . . . Weapon 93 | 2 5 . 10 3 1 . 5 . 5 . . 1 3 11 3 2 6 . 6 22 8 Energy Gun 7 | 1 1 . 1 . 1 . 1 . 2 . . . . . . . . . . . . Energy Cannon 4 | . . . 2 1 . . . . . . . . 1 . . . . . . . . Ballistic Gun 17 | 1 1 . 2 1 . . 1 . . . . . . . 1 . 1 . 2 6 1 Ballistic Cannon 20 | . 3 . 4 . . . 2 . 1 . . . 1 3 . . . . . 1 5 Launcher 22 | . . . . 1 . . 1 . 2 . . 1 . 5 2 1 2 . 2 5 . Special Weapon 19 | . . . . . . . . . . . . . 1 3 . 1 3 . 2 9 . Impact Weapon . | . . . . . . . . . . . . . . . . . . . . . . Slashing Weapon 1 | . . . . . . . . . . . . . . . . . . . . . 1 Piercing Weapon 2 | . . . . . . . . . . . . . . . . . . . . 1 1 Special Melee Weapon 1 | . . . 1 . . . . . . . . . . . . . . . . . . Unidentified Prototypes 10 | . . 1 4 2 1 . . . . . . . . . . . . . . . 2 Parts Lost 60 | . 1 . . 2 . . 2 3 3 . . . 3 . 1 . 1 . . 15 29 Power 13 | . 1 . . . . . . 2 . . . . . . . . 1 . . 2 7 Propulsion 12 | . . . . . . . . . . . . . 1 . . . . . . 3 8 Utility 19 | . . . . 1 . . . . 1 . . . 2 . 1 . . . . 6 8 Weapon 16 | . . . . 1 . . 2 1 2 . . . . . . . . . . 4 6 Highest Loss Streak 22 | . 1 . . 1 . . 1 2 2 . . . 2 . 1 . 1 . . 4 22 To Critical Strikes 1 | . . . . . . . . . . . . . . . . . . . . 1 . Average Slot Usage (%) 74 | . 99 100 99 99 79 76 61 60 59 61 61 61 62 65 66 63 65 68 72 67 63 Engine 7 | . 14 14 11 11 11 7 6 5 4 . . . 4 13 11 5 5 5 5 . . Reactor 1 | . . . . . . . . . . . . . . . 1 5 4 5 5 5 5 Treads 10 | . 3 . 33 33 18 23 3 2 2 . . . . . . . . . . 8 2 Leg 3 | . 5 . . . 1 . 4 4 4 7 7 7 4 5 6 5 6 10 10 1 1 Wheel 1 | . 18 28 . . . . . . . . . . . . . . . . . . . Device 10 | . 10 . 3 11 10 15 7 10 14 15 15 15 13 17 16 16 16 15 15 14 12 Storage 8 | . 14 14 11 11 11 7 7 7 7 7 7 7 6 6 6 5 5 5 5 5 4 Processor 6 | . . . 9 . . 7 14 11 7 7 7 7 4 . . . . . . 2 11 Hackware 1 | . . . . . . . . . . . . . . 1 . . 4 5 9 9 6 Protection 2 | . 3 14 9 10 4 . . . . . . . . . 3 5 . 5 4 1 . Energy Gun 3 | . 1 . . . 6 7 5 9 9 7 7 7 3 . . 5 1 . . . . Energy Cannon 4 | . . . 6 16 4 . 1 5 . . . . 12 13 12 5 1 . . . . Ballistic Gun 3 | . 10 . . 4 11 7 . . 3 . . . . . 2 . 7 10 12 7 . Ballistic Cannon 5 | . 15 28 14 . . . 5 . . 7 7 3 . 2 2 . . . . 1 10 Peak Build Rating 132 | 7 13 20 28 28 42 54 59 74 83 58 60 60 92 89 89 94 96 101 102 111 132 Average Rating 57 | 5 9 13 22 24 33 52 54 64 70 58 58 58 77 84 87 92 90 97 96 101 110 On Entrance 58 | . 7 13 14 22 25 42 54 59 74 58 58 60 57 77 87 88 94 95 97 102 93 Naked Turns . | . . . . . . . . . . . . . . . . . . . . . . Heaviest Build 140 | 13 98 98 103 111 106 96 104 104 104 61 61 61 130 121 121 120 130 127 129 140 138 Greatest Support 171 | 20 32 32 66 60 60 96 97 171 171 79 79 79 151 93 93 93 154 134 134 157 170 Greatest Overweight (x) 9 | . 9 3 1 1 3 . 1 1 1 . . . 1 1 1 1 1 . . 1 2 Average Overweight (x) . | . 3 2 1 1 1 . . . . . . . . . 1 1 . . . . . Largest Inventory Capacity 25 | 8 25 25 25 25 25 25 25 25 25 20 20 20 25 25 25 25 25 25 25 25 25 Average Capacity 24 | 7 24 25 25 25 25 25 25 25 24 20 20 20 23 24 25 25 25 25 25 24 21 Most Carried 25 | 5 25 25 25 25 25 24 25 25 24 20 20 20 21 25 25 25 25 24 25 25 25 Average Carried 23 | 2 21 24 24 24 24 22 24 24 21 20 19 19 19 23 24 24 24 23 22 24 21 Final Capacity 25 | 8 25 25 25 25 25 25 25 25 20 20 20 20 25 25 25 25 25 25 25 20 5 Final Carried 25 | 5 25 25 25 25 25 24 25 25 20 20 20 20 21 25 25 25 25 23 25 20 3 Scrap Engine Consumption 358 | . . . . . 42 . 66 16 32 . 11 3 15 18 8 3 23 . 7 32 82 Constructs Created 21 | . . . . . 1 1 3 2 2 . . . 1 . . . 1 . . 4 6 Constructs Modified 109 | . . . . . 5 . 24 6 13 . 1 . 12 2 3 . 11 . . 8 24 Class Distribution -------------------- 47% | Construct 26% | Mutant 8% | Commander-Construct 5% | Commander-Mutant 4% | Bothacker-Construct 3% | Scavenger-Mutant Dominant Class ---------------- Mutant | -10/Materials Mutant | -10/Mines Mutant | -9/Materials Mutant | -9/Storage Commander-Construct | -9/Recycling Commander-Construct | -7/Factory Construct | -7/Garrison Construct | -7/Factory Construct | -7/Garrison Construct | -7/Factory Construct | -7/DSF Construct | -7/Garrison Construct | -6/Factory Construct | -6/Waste Construct | -6/Factory Construct | -5/Factory Construct | -5/Garrison Bothacker-Construct | -4/Factory Bothacker-Construct | -4/Waste Construct | -4/Factory Commander-Construct | -4/Extension Resources | -11 -10 -10 -9 -9 -9 -7 -7 -7 -7 -7 -7 -7 -6 -6 -6 -5 -5 -4 -4 -4 -4 ----------- Run | Yrd Mat Min Mat Sto Rec Fac Gar Fac Gar Fac DSF Gar Fac Was Fac Fac Gar Fac Was Fac Ext Matter Collected 9282 | 316 396 27 1408 139 39 . 1012 237 353 . 76 122 140 948 154 41 309 . 524 1319 1722 Remotely 1502 | . . . 90 . . . . . . . . . . 594 . . . . 524 36 258 Salvage Created 13011 | 168 550 106 1298 1374 143 . 1390 978 491 . 174 175 704 1468 295 . 301 . 1052 652 1692 Parts 563 | 10 40 7 118 86 8 . 40 41 20 . 6 10 21 9 24 . 16 . 8 43 56 Haulers Intercepted 12 | . 2 . 4 1 . . . . . . . . . . 1 . . . . . 4 Recyclers Shooed 6 | . 2 . 1 . . . . . . . . . 1 . 1 . . . . . 1 Parts Field Recycled . | . . . . . . . . . . . . . . . . . . . . . . Retrieved Matter . | . . . . . . . . . . . . . . . . . . . . . . Parts Self-Destructed . | . . . . . . . . . . . . . . . . . . . . . . Prevented . | . . . . . . . . . . . . . . . . . . . . . . Kills | -11 -10 -10 -9 -9 -9 -7 -7 -7 -7 -7 -7 -7 -6 -6 -6 -5 -5 -4 -4 -4 -4 ------- Run | Yrd Mat Min Mat Sto Rec Fac Gar Fac Gar Fac DSF Gar Fac Was Fac Fac Gar Fac Was Fac Ext Combat Hostiles Destroyed 205 | . 11 4 35 24 1 . 16 22 14 . 2 4 10 6 7 . 6 . 5 21 17 Melee 7 | . . . . . . . . 1 . . . . 1 . . . . . . 4 1 Guns 44 | . 4 . . . . . 3 14 9 . . 1 1 . 1 . 6 . 1 3 1 Cannons 117 | . 6 4 35 23 1 . 8 7 1 . 2 1 7 3 2 . . . . 2 15 AOE 34 | . 1 . . . . . 5 . 4 . . 2 . 2 4 . . . 4 12 . Classes Destroyed 20 | 3 5 1 2 . . . 1 . . . 2 . . 1 . . . . . 3 2 Worker 16 | 2 2 . 5 3 . . . 1 . . . . . . 1 . . . . 1 1 Builder 12 | . . . 4 . . . . . . . . . . . 3 . . . . . 5 Tunneler 4 | 2 . . . . . . . . . . . . . . . . . . . 2 . Hauler 12 | . 2 . 4 1 . . . . . . . . . . 1 . . . . . 4 Recycler 14 | 1 2 1 4 1 1 . . . . . . . 1 . . . . . . . 3 Operator 6 | . 1 . 1 1 . . . . . . . . . . . . . . . 1 2 Watcher 9 | . 3 . 4 2 . . . . . . . . . . . . . . . . . Swarmer 52 | . 6 3 16 . . . . 3 6 . . . . . 5 . 2 . . 9 2 Cutter 3 | . . . . . . . . . . . . . . . . . . . . 3 . Saboteur 1 | . . . . . . . . . . . . . . . . . . . . . 1 Grunt 73 | . 5 . 9 14 . . 13 13 7 . . 2 5 . 1 . 1 . . . 3 Brawler 3 | . . . . . . . . . . . . . 1 . . . 1 . . . 1 Duelist 9 | . . . 1 1 . . . 3 . . 1 . 1 . . . . . . . 2 Sentry 33 | . . 1 9 9 1 . 2 2 1 . . 1 1 . 1 . . . . 2 3 Demolisher 1 | . . . . . . . . . . . . . . . . . . . . 1 . Hunter 5 | . . . . . . . . . . . . . . . . . . . . 3 2 Programmer 12 | . . . . . . . 1 1 . . . 1 2 . . . 2 . . 3 2 Behemoth 1 | . . . . . . . . . . . . . . . . . . . . . 1 Compactor 11 | . . . . . . . . . . . . . . 6 . . . . 5 . . Executioner 1 | . . . . . . . . . . . 1 . . . . . . . . . . Wasp 2 | . . . . . . . . . . . . . . . . . 2 . . . . Thug 1 | . . . . . . . . . . . . . . . . . . . . . 1 Savage 1 | . . . . . . . . . . . 1 . . . . . . . . . . Best Kill Streak 7 | 3 5 3 7 6 1 . 4 7 3 . 1 2 5 2 5 . 2 . 3 5 6 Combat Bots Only 7 | . 3 3 5 4 1 . 4 7 3 . 1 2 4 2 4 . 2 . 3 4 3 Max Kills in Single Turn 4 | 1 1 1 2 2 1 . 2 1 3 . 1 1 1 1 3 . 1 . 1 4 2 Gunslinging . | . . . . . . . . . . . . . . . . . . . . . . Exploded 4 | . 1 . . . . . 2 . 2 . . 1 . 1 3 . . . 1 4 . Melee 1 | . . . . . . . . 1 . . . . 1 . . . . . . 1 1 Uniques/NPCs Destroyed . | . . . . . . . . . . . . . . . . . . . . . . Combat | -11 -10 -10 -9 -9 -9 -7 -7 -7 -7 -7 -7 -7 -6 -6 -6 -5 -5 -4 -4 -4 -4 -------- Run | Yrd Mat Min Mat Sto Rec Fac Gar Fac Gar Fac DSF Gar Fac Was Fac Fac Gar Fac Was Fac Ext Hostile Shots Fired 1843 | . 66 15 179 82 6 . 158 210 174 . 2 35 124 . 28 1 50 . . 338 375 Missed 550 | . 11 5 54 25 1 . 70 56 43 . . 23 29 . 8 1 19 . . 99 106 Damage Taken 23017 | . 572 90 1384 845 73 . 1613 2261 1605 . 68 106 1691 15 412 42 738 . 119 5248 6135 Core 2352 | . 121 9 107 158 15 . 131 184 238 . . 12 152 . 15 . 55 . 13 547 595 Absorbed by Shields 614 | . . . . . . . . . 55 . . . . . . 15 193 . . 274 77 Reduced by Siege Mode 111 | . . . . . . . . 39 . . . . . . . . . . . . 72 Redirected to Shielding 188 | . . . . . . . . . . . . . . . 77 21 . . 21 69 . Ignored by Resistances 544 | . . . . . . . . . . . . . . . . . . . . 544 . Regen/Repaired (Parts) 6670 | . . . 42 252 15 . 817 453 1753 . 166 5 537 166 373 . 563 . 41 660 827 Core Remaining (%) 61 | 100 . 48 . . 30 . . . . . . 19 . . 80 . 94 . . . . Volleys Fired 852 | 11 53 9 129 64 3 . 100 64 57 . 4 8 31 89 13 9 40 2 20 78 68 Largest 3 | 2 2 2 2 2 2 . 2 2 2 . 2 2 3 3 3 1 3 1 3 3 3 Hottest 230 | 70 70 78 136 136 91 . 109 121 126 . 126 126 230 201 220 43 146 5 196 207 207 Shots Fired 1697 | 22 104 18 248 127 6 . 180 128 111 . 8 16 81 166 40 9 74 2 34 135 188 Gun 578 | 22 58 . 7 17 3 . 85 96 95 . 4 8 16 . 10 . 51 . 17 63 26 Cannon 982 | . 46 18 241 110 3 . 84 32 11 . 4 4 63 147 26 . 12 . . 19 162 Launcher 65 | . . . . . . . 11 . 5 . . 4 . 14 4 3 2 . 12 10 . Special 72 | . . . . . . . . . . . . . 2 5 . 6 9 2 5 43 . Kinetic 930 | 11 97 18 212 17 3 . 73 43 82 . 4 4 7 18 10 . 51 . 17 82 181 Thermal 526 | 11 1 . 36 110 3 . 40 85 . . . . 66 129 26 . 12 . . . 7 Explosive 62 | . . . . . . . 11 . 5 . . 4 . 14 3 3 . . 12 10 . Electromagnetic 107 | . 6 . . . . . 56 . 24 . 4 8 6 . 1 . 2 . . . . Robot Hit Streak 24 | 6 5 10 7 14 4 . 24 24 13 . 1 2 10 10 6 1 7 1 6 6 18 Robot Miss Streak 14 | 2 6 2 5 4 1 . 2 4 3 . 2 1 2 4 4 3 4 1 4 14 6 Penetration Max 1 | . . . . . . . . 1 . . . . . . . . . . . . 1 Secondary Targets 2 | . . . . . . . . 1 1 . . . . . . . . . . . . Max Gunslinging Chain 1 | . . . . . . . . 1 1 . . . . . . . . . . . . Shots Hit Robots 991 | 15 50 11 134 71 3 . 104 106 72 . 2 4 51 96 16 2 37 1 19 86 111 Core Hits 540 | 6 26 6 60 34 2 . 66 44 56 . 3 6 22 16 15 6 23 . 14 67 68 Critical Kills 14 | . . . . 1 . . 3 . 1 . 2 1 1 1 . . . . . 1 3 Critical Parts Destroyed 18 | . . . . . . . 9 . 2 . . . 3 1 . . . . . . 3 Critical Strikes 63 | 1 2 . 6 1 . . 17 . 4 . 2 1 5 9 . . . . . 1 14 Burn 5 | 1 . . . . . . . . . . . . . 3 . . . . . . 1 Meltdown 3 | . . . . 1 . . . . . . . . 1 1 . . . . . . . Destroy 37 | . . . . . . . 12 . 4 . 2 1 4 5 . . . . . 1 8 Blast 15 | . 2 . 6 . . . 2 . . . . . . . . . . . . . 5 Corrupt 3 | . . . . . . . 3 . . . . . . . . . . . . . . Melee Attacks 28 | . . . . . . . . . . . . . . . . . . . . 19 9 Impact . | . . . . . . . . . . . . . . . . . . . . . . Slashing 5 | . . . . . . . . . . . . . . . . . . . . . 5 Piercing 23 | . . . . . . . . . . . . . . . . . . . . 19 4 Sneak Attacks 2 | . . . . . . . . . . . . . . . . . . . . . 2 Combat Hostiles . | . . . . . . . . . . . . . . . . . . . . . . Follow-up Attacks . | . . . . . . . . . . . . . . . . . . . . . . Damage Inflicted 31930 | 190 886 221 2844 1537 62 . 2706 2630 2126 . 48 294 1628 4178 1222 229 1158 . 2310 2830 4831 Guns 7444 | 190 344 . 45 126 . . 1026 1936 1326 . . 21 157 . 184 . 622 . 204 733 530 Cannons 15186 | . 495 221 2715 1309 62 . 970 650 130 . 48 32 1322 2607 258 . 109 . . 138 4120 Explosions 8055 | . 47 . . 102 . . 710 . 670 . . 241 . 1528 685 229 427 . 2106 1310 . Melee 639 | . . . . . . . . . . . . . . . . . . . . 472 167 Ramming 606 | . . . 84 . . . . 44 . . . . 149 43 95 . . . . 177 14 Kinetic 13247 | 81 770 221 2474 126 . . 793 934 1177 . 48 32 64 195 184 . 622 . 204 871 4451 Thermal 8530 | 109 60 . 286 1309 62 . 509 1652 . . . . 1398 2412 300 . 234 . . . 199 Explosive 7448 | . . . . 102 . . 710 . 670 . . 241 . 1528 552 229 . . 2106 1310 . Electromagnetic 1460 | . 56 . . . . . 694 . 279 . . 21 17 . 91 . 302 . . . . Impact . | . . . . . . . . . . . . . . . . . . . . . . Slashing 37 | . . . . . . . . . . . . . . . . . . . . . 37 Piercing 602 | . . . . . . . . . . . . . . . . . . . . 472 130 Highest Corruption 24 | . . . . . . . 2 2 2 2 2 2 10 10 10 . 1 . 23 24 24 Average Corruption 9 | . . . . . . . 1 2 2 2 2 2 9 10 10 . 1 . 11 23 17 Corruption Purged . | . . . . . . . . . . . . . . . . . . . . . . Corruption Blocked . | . . . . . . . . . . . . . . . . . . . . . . Effects 283 | . . . . . . . 30 9 11 . 3 2 9 45 17 . 3 . 7 68 79 Message Errors 64 | . . . . . . . 6 5 1 . . 1 1 7 5 . 2 . 2 15 19 Matter Fused 70 | . . . . . . . 8 . 3 . . 1 . 12 4 . . . 1 21 20 Heat Flow Errors 35 | . . . . . . . 2 2 1 . . . 3 6 2 . . . 2 11 6 Energy Discharges 33 | . . . . . . . 3 2 3 . 2 . . 5 1 . . . 2 5 10 Parts Rejected 3 | . . . . . . . . . . . . . . 1 . . . . . 2 . Parts Fused 1 | . . . . . . . . . . . . . . . . . . . . . 1 Data Loss (minor) 25 | . . . . . . . 5 . . . . . 2 5 2 . 1 . . 2 8 Data Loss (major) 15 | . . . . . . . 4 . 2 . 1 . 1 1 . . . . . 1 5 Misfires 10 | . . . . . . . 1 . . . . . . 2 1 . . . . 1 5 Alerts 11 | . . . . . . . . . 1 . . . 1 1 1 . . . . 4 3 Misdirections 8 | . . . . . . . . . . . . . . 3 1 . . . . 4 . Weapon Failures 8 | . . . . . . . 1 . . . . . 1 2 . . . . . 2 2 Overload Shots . | . . . . . . . . . . . . . . . . . . . . . . Overflow Damage 404 | . 22 3 56 61 . . . . 20 . . . 34 . 124 . . . . 34 50 Projectiles 173 | . 22 3 53 11 . . . . . . . . 34 . . . . . . . 50 Explosions 157 | . . . . 50 . . . . 20 . . . . . 87 . . . . . . Melee 74 | . . . 3 . . . . . . . . . . . 37 . . . . 34 . Knockbacks 47 | . 2 1 26 . . . 3 . . . . . 1 . . . . . . 1 13 Impact 3 | . . . . . . . . . . . . . 1 . . . . . . 1 1 Kinetic 42 | . 2 1 24 . . . 3 . . . . . . . . . . . . . 12 Secondary 2 | . . . 2 . . . . . . . . . . . . . . . . . . Self-Inflicted Damage 688 | . 36 . . 112 . . 15 . 68 . . . 50 16 . 35 95 . 122 139 . Shots 24 | . 1 . . 2 . . 1 . 3 . . . . 1 . 1 6 . 5 4 . Rammed 26 | . . . 11 . . . . 1 . . . . 10 . . . . . . 1 3 Targets Rammed 45 | . . . 11 . . . . 4 . . . . 14 3 3 . . . . 5 5 Kicked 15 | . . . . . . . . 2 . . . . 4 3 3 . . . . 1 2 Crushed 4 | . . . . . . . . 1 . . . . . . . . . . . 3 . Highest Temperature 569 | 36 36 198 297 237 19 . 378 288 279 . 121 57 569 266 238 . 156 . 245 223 408 Average Temperature 82 | 13 15 77 64 66 15 . 64 101 73 . 47 21 238 68 69 . 50 . 52 63 104 Received Heat Transfer 5534 | . 144 9 378 336 36 . 861 873 684 . . 33 618 . 57 . 90 . . 213 1202 Effects 18 | . . . . . . . 1 . . . . . 16 . . . . . . . 1 Shutdowns 9 | . . . . . . . 1 . . . . . 8 . . . . . . . . Energy Bleed 3 | . . . . . . . . . . . . . 3 . . . . . . . . Interference 1 | . . . . . . . . . . . . . . . . . . . . . 1 Short Circuit 2 | . . . . . . . . . . . . . 2 . . . . . . . . Damage (major) 3 | . . . . . . . . . . . . . 3 . . . . . . . . Siege Activations 2 | . . . . . . . . 1 . . . . . . . . . . . . 1 Total Turns 37 | . . . . . . . . 26 . . . . . . . . . . . . 11 Longest Duration 26 | . . . . . . . . 26 . . . . . . . . . . . . 11 Robots Corrupted 4 | . . . . . . . 4 . . . . . . . . . . . . . . Combat Hostiles . | . . . . . . . . . . . . . . . . . . . . . . Parts Fried 12 | . . . . . . . 9 . . . . . . . . . 1 . . 2 . Impact Corruptions 4 | . . . 1 . . . . . . . . . . . 2 . . . . 1 . Robots Melted 3 | . . . . 1 . . . . . . . . 1 1 . . . . . . . Combat Hostiles 3 | . . . . 1 . . . . . . . . 1 1 . . . . . . . Parts Melted 15 | 1 . . . 4 . . . 3 . . . . 4 1 . . . . . . 2 Heat Transferred 10823 | 407 87 . 518 2368 111 . 583 2703 . . . . 1435 1702 309 . 285 . . . 315 Parts Sabotaged 3 | . . . . . . . . . . . . . . . . . . . . . 3 Parts Stolen . | . . . . . . . . . . . . . . . . . . . . . . Parts Stripped . | . . . . . . . . . . . . . . . . . . . . . . Power Chain Reactions 3 | . 1 . . . . . . . . . . . . . 1 . 1 . . . . Alert | -11 -10 -10 -9 -9 -9 -7 -7 -7 -7 -7 -7 -7 -6 -6 -6 -5 -5 -4 -4 -4 -4 ------- Run | Yrd Mat Min Mat Sto Rec Fac Gar Fac Gar Fac DSF Gar Fac Was Fac Fac Gar Fac Was Fac Ext Peak Influence 2399 | 25 186 111 777 782 345 204 2399 1647 1834 962 697 765 528 163 1329 1400 2143 1124 541 1449 2034 Initial 1259 | . 16 . 42 308 240 200 142 1259 1152 962 673 522 401 112 . 651 980 1124 393 378 644 Average 738 | 8 54 35 345 578 65 200 1192 1328 1363 962 689 639 434 62 674 872 1674 1124 497 973 1271 Maximum Alert Level 5 | . . . 3 3 1 1 5 5 5 3 2 3 2 . 4 4 5 4 2 4 5 Low Security (%) 28 | 100 100 100 46 . 82 . . . . . . . . 100 38 . . . . . . Level 1 7 | . . . 16 13 17 100 4 . . . . . 17 . 1 . . . 15 1 . Level 2 19 | . . . 18 56 . . 26 . . . 100 69 82 . 3 60 . . 84 22 17 Level 3 14 | . . . 18 29 . . 23 . . 100 . 30 . . 14 16 15 . . 36 27 Level 4 17 | . . . . . . . 15 96 82 . . . . . 41 23 7 100 . 39 14 Level 5 11 | . . . . . . . 30 3 17 . . . . . . . 76 . . . 27 High Security 1 | . . . . . . . . . . . . . . . . . . . . . 12 Max Security . | . . . . . . . . . . . . . . . . . . . . . . Sterilizations 1 | . . . . . . . . . . . 1 . . . . . . . . . . Squads Dispatched 50 | . 2 . 3 4 . . . 8 . . . . 2 . 4 1 . . . 8 18 Investigation 10 | . 1 . 1 2 . . . 2 . . . . . . 1 . . . . 2 1 Extermination 5 | . . . . . . . . 1 . . . . 2 . 1 . . . . 1 . Reinforcement 14 | . 1 . 2 1 . . . . . . . . . . 1 1 . . . 4 4 Assault 18 | . . . . . . . . 3 . . . . . . 1 . . . . 1 13 Garrison 3 | . . . . 1 . . . 2 . . . . . . . . . . . . . Intercept . | . . . . . . . . . . . . . . . . . . . . . . Searches Triggered . | . . . . . . . . . . . . . . . . . . . . . . Construction Impeded 5 | . . . 1 . . . . . . . . . . . . . . . . 2 2 Haulers Reinforced . | . . . . . . . . . . . . . . . . . . . . . . Active Scanning Responses . | . . . . . . . . . . . . . . . . . . . . . . Cargo Convoy Interrupts . | . . . . . . . . . . . . . . . . . . . . . . Stealth | -11 -10 -10 -9 -9 -9 -7 -7 -7 -7 -7 -7 -7 -6 -6 -6 -5 -5 -4 -4 -4 -4 --------- Run | Yrd Mat Min Mat Sto Rec Fac Gar Fac Gar Fac DSF Gar Fac Was Fac Fac Gar Fac Was Fac Ext Distress Signals 19 | . 2 . 5 2 1 . . . . . . . . . 3 . . . . 2 4 Communications Jammed 5 | . . . . . . . . . . . . . . . . . . . . 5 . Distress Signals . | . . . . . . . . . . . . . . . . . . . . . . Times Spotted 472 | . 19 4 59 31 5 . 29 42 23 . 4 7 16 7 19 5 24 . 5 85 88 Peak Tracking Total 21 | . 5 3 5 7 3 . 7 7 4 . 4 3 5 2 5 3 10 . 3 10 21 Tactical Retreats 28 | . 2 . 4 1 . . 5 4 1 . . . . . . . 1 . . 5 5 Traps | -11 -10 -10 -9 -9 -9 -7 -7 -7 -7 -7 -7 -7 -6 -6 -6 -5 -5 -4 -4 -4 -4 ------- Run | Yrd Mat Min Mat Sto Rec Fac Gar Fac Gar Fac DSF Gar Fac Was Fac Fac Gar Fac Was Fac Ext Traps Triggered 34 | . 1 . . . . . 10 1 4 . 2 2 1 . 2 . 7 1 . 3 . Indirectly . | . . . . . . . . . . . . . . . . . . . . . . Trap Hack Attempts . | . . . . . . . . . . . . . . . . . . . . . . Triggered . | . . . . . . . . . . . . . . . . . . . . . . Disarmed . | . . . . . . . . . . . . . . . . . . . . . . Reprogrammed . | . . . . . . . . . . . . . . . . . . . . . . Reused . | . . . . . . . . . . . . . . . . . . . . . . Traps Extracted . | . . . . . . . . . . . . . . . . . . . . . . Installed . | . . . . . . . . . . . . . . . . . . . . . . Triggered . | . . . . . . . . . . . . . . . . . . . . . . Machines | -11 -10 -10 -9 -9 -9 -7 -7 -7 -7 -7 -7 -7 -6 -6 -6 -5 -5 -4 -4 -4 -4 ---------- Run | Yrd Mat Min Mat Sto Rec Fac Gar Fac Gar Fac DSF Gar Fac Was Fac Fac Gar Fac Was Fac Ext Machines Disabled 39 | . 1 . 2 5 . . . 1 1 . . 1 . . 10 9 3 . . 3 3 Max in Single Turn 2 | . 1 . 1 2 . . . 1 1 . . 1 . . 2 . 1 . . 1 1 Garrison Access 2 | . . . . 1 . . . . . . . . . . . . . . . 1 . Garrison Relay 5 | . . . . . . . . . 1 . . 1 . . . . 3 . . . . Energy Cycler 1 | . . . . . . . . . . . . . . . . . . . . . 1 Machines Repaired . | . . . . . . . . . . . . . . . . . . . . . . Machines Dismantled . | . . . . . . . . . . . . . . . . . . . . . . Machines Sabotaged . | . . . . . . . . . . . . . . . . . . . . . . Overloaded Fab Kills . | . . . . . . . . . . . . . . . . . . . . . . Hacking | -11 -10 -10 -9 -9 -9 -7 -7 -7 -7 -7 -7 -7 -6 -6 -6 -5 -5 -4 -4 -4 -4 --------- Run | Yrd Mat Min Mat Sto Rec Fac Gar Fac Gar Fac DSF Gar Fac Was Fac Fac Gar Fac Was Fac Ext Machines Accessed 73 | . 7 . 12 10 10 1 3 5 2 1 . . 1 . 3 1 . 1 . 8 8 Terminals 52 | . 6 . 8 7 6 . 3 3 2 1 . . 1 . 3 . . . . 5 7 Fabricators 3 | . . . . . . . . . . . . . . . . . . 1 . 2 . Repair Stations 3 | . . . 1 1 . . . 1 . . . . . . . . . . . . . Recycling Units 7 | . 1 . 1 1 3 . . . . . . . . . . . . . . . 1 Scanalyzers 2 | . . . 2 . . . . . . . . . . . . . . . . . . Garrison Access 5 | . . . . 1 . 1 . 1 . . . . . . . 1 . . . 1 . Total Hacks 226 | . 26 . 40 32 36 3 11 10 2 2 . . 3 . 8 1 . 2 . 20 30 Successful 113 | . 17 . 22 20 19 1 1 3 2 1 . . 1 . 1 1 . 2 . 7 15 Failed 113 | . 9 . 18 12 17 2 10 7 . 1 . . 2 . 7 . . . . 13 15 Catastrophic 19 | . 1 . 1 1 1 . 2 1 . . . . . . 2 . . . . 4 6 Database Lockouts . | . . . . . . . . . . . . . . . . . . . . . . Manual 136 | . 24 . 23 14 31 . 3 7 . . . . 3 . 1 . . . . 15 15 Terminals 156 | . 24 . 21 22 23 . 11 7 2 2 . . 3 . 8 . . . . 10 23 Fabricators 10 | . . . . . . . . . . . . . . . . . . 2 . 8 . Repair Stations 11 | . . . 3 6 . . . 2 . . . . . . . . . . . . . Recycling Units 29 | . 2 . 6 3 11 . . . . . . . . . . . . . . . 7 Scanalyzers 10 | . . . 10 . . . . . . . . . . . . . . . . . . Garrison Access 8 | . . . . 1 . 3 . 1 . . . . . . . 1 . . . 2 . Terminal Hacks 26 | . 2 . 1 5 6 . 1 1 2 1 . . . . 1 . . . . 1 5 Part Schematic 1 | . . . . 1 . . . . . . . . . . . . . . . . . Robot Schematic 1 | . 1 . . . . . . . . . . . . . . . . . . . . Open Door 7 | . . . . 2 . . . . 1 . . . . . . . . . . . 4 Open DSF 1 | . . . . . . . . . . 1 . . . . . . . . . . . Branch Access Points 1 | . . . . . . . . 1 . . . . . . . . . . . . . Emergency Access Points 1 | . . . . . . . . . 1 . . . . . . . . . . . . Terminal Index 1 | . . . . . . . . . . . . . . . 1 . . . . . . Alert Level 4 | . . . 1 1 2 . . . . . . . . . . . . . . . . Unreport Threat 6 | . 1 . . 1 2 . . . . . . . . . . . . . . 1 1 Patrol Navigation 1 | . . . . . . . 1 . . . . . . . . . . . . . . Release Object 2 | . . . . . 2 . . . . . . . . . . . . . . . . Fabricator Hacks 2 | . . . . . . . . . . . . . . . . . . 2 . . . Load Schematic 1 | . . . . . . . . . . . . . . . . . . 1 . . . Build 1 | . . . . . . . . . . . . . . . . . . 1 . . . Repair Station Hacks 5 | . . . . 5 . . . . . . . . . . . . . . . . . Scan Component 3 | . . . . 3 . . . . . . . . . . . . . . . . . Repair 2 | . . . . 2 . . . . . . . . . . . . . . . . . Recycling Unit Hacks 7 | . 1 . 2 1 1 . . . . . . . . . . . . . . . 2 Report Inventory 1 | . . . . . . . . . . . . . . . . . . . . . 1 Retrieve Matter 1 | . 1 . . . . . . . . . . . . . . . . . . . . Retrieve Components 5 | . . . 2 1 1 . . . . . . . . . . . . . . . 1 Scanalyzer 8 | . . . 8 . . . . . . . . . . . . . . . . . . Insert Component 4 | . . . 4 . . . . . . . . . . . . . . . . . . Analyze 4 | . . . 4 . . . . . . . . . . . . . . . . . . Garrison Access Hacks 6 | . . . . 1 . 1 . 1 . . . . . . . 1 . . . 2 . Unlock Access 3 | . . . . . . 1 . 1 . . . . . . . 1 . . . . . Seal Access 2 | . . . . 1 . . . . . . . . . . . . . . . 1 . Coupler Status 1 | . . . . . . . . . . . . . . . . . . . . 1 . Unauthorized Hacks 59 | . 14 . 11 8 12 . . 1 . . . . 1 . . . . . . 4 8 Terminals 42 | . 13 . 9 7 7 . . . . . . . 1 . . . . . . 1 4 Track 8 | . 3 . 1 2 . . . . . . . . . . . . . . . . 2 Assimilate 3 | . 2 . 1 . . . . . . . . . . . . . . . . . . Botnet 12 | . 2 . 1 3 2 . . . . . . . 1 . . . . . . 1 2 Operators 4 | . 1 . 1 2 . . . . . . . . . . . . . . . . . Skim 15 | . 5 . 5 . 5 . . . . . . . . . . . . . . . . Fabricators 3 | . . . . . . . . . . . . . . . . . . . . 3 . Liberate 2 | . . . . . . . . . . . . . . . . . . . . 2 . Haulers 1 | . . . . . . . . . . . . . . . . . . . . 1 . Repair Stations 2 | . . . 1 . . . . 1 . . . . . . . . . . . . . Patch 2 | . . . 1 . . . . 1 . . . . . . . . . . . . . Recycling Units 12 | . 1 . 1 1 5 . . . . . . . . . . . . . . . 4 Monitor 1 | . . . . . . . . . . . . . . . . . . . . . 1 Reject 7 | . 1 . 1 1 3 . . . . . . . . . . . . . . . 1 Recyclers 1 | . . . . . . . . . . . . . . . . . . . . . 1 Mask 1 | . . . . . . . . . . . . . . . . . . . . . 1 Tunnel 2 | . . . . . 2 . . . . . . . . . . . . . . . . Scanalyzers . | . . . . . . . . . . . . . . . . . . . . . . Garrison Access . | . . . . . . . . . . . . . . . . . . . . . . Data Cores Recovered 1 | . . . . . . . . . . . . . . . . . . . . . 1 Used . | . . . . . . . . . . . . . . . . . . . . . . Hacking Detections 63 | . 7 . 12 9 8 1 3 4 . 1 . . 1 . 3 1 . . . 7 6 Full Trace Events 18 | . . . 4 4 2 . 3 1 . . . . . . 1 . . . . 2 1 Feedback Events . | . . . . . . . . . . . . . . . . . . . . . . Feedback Blocked . | . . . . . . . . . . . . . . . . . . . . . . Robot Schematics Acquired 1 | . 1 . . . . . . . . . . . . . . . . . . . . Robots Built 1 | . . . . . . . . . . . . . . . . . . 1 . . . Authchips 1 | . . . . . . . . . . . . . . . . . . 1 . . . Time 40 | . . . . . . . . . . . . . . . . . . 40 . . . Total Robot Build Rating 1 | . . . . . . . . . . . . . . . . . . 1 . . . Part Schematics Acquired 5 | . . . 4 1 . . . . . . . . . . . . . . . . . Parts Built . | . . . . . . . . . . . . . . . . . . . . . . Authchips . | . . . . . . . . . . . . . . . . . . . . . . Time . | . . . . . . . . . . . . . . . . . . . . . . Total Part Build Rating . | . . . . . . . . . . . . . . . . . . . . . . Parts Repaired 2 | . . . . 2 . . . . . . . . . . . . . . . . . Time 76 | . . . . 76 . . . . . . . . . . . . . . . . . Parts Recycled . | . . . . . . . . . . . . . . . . . . . . . . Recycled Matter . | . . . . . . . . . . . . . . . . . . . . . . Retrieved Matter 365 | . 365 . . . . . . . . . . . . . . . . . . . . Retrieved Components 22 | . . . 9 . 4 . . . . . . . . . . . . . . . 9 Parts Scanalyzed 4 | . . . 4 . . . . . . . . . . . . . . . . . . Part Schematics Acquired 4 | . . . 4 . . . . . . . . . . . . . . . . . . Parts Damaged . | . . . . . . . . . . . . . . . . . . . . . . Bothacking | -11 -10 -10 -9 -9 -9 -7 -7 -7 -7 -7 -7 -7 -6 -6 -6 -5 -5 -4 -4 -4 -4 ------------ Run | Yrd Mat Min Mat Sto Rec Fac Gar Fac Gar Fac DSF Gar Fac Was Fac Fac Gar Fac Was Fac Ext Used RIF Installer 2 | . . . . . . . . . 1 . . . . . . . 1 . . . . Coupler Efficiency 1 | . . . . . . . . . . . . . . . . . 1 . . . . Robots Hacked 35 | . . . . . . . . . . . . . 1 4 . 1 6 1 5 17 . Non-combat 5 | . . . . . . . . . . . . . 1 . . 1 . 1 . 2 . Combat 30 | . . . . . . . . . . . . . . 4 . . 6 . 5 15 . Robot Hacks Applied 37 | . . . . . . . . . . . . . 1 4 . 2 6 1 5 18 . find_chute 3 | . . . . . . . . . . . . . . . . 2 . 1 . . . map_route 2 | . . . . . . . . . . . . . 1 . . . . . . 1 . ignore_targets 9 | . . . . . . . . . . . . . . 4 . . . . 5 . . find_garrison 1 | . . . . . . . . . . . . . . . . . . . . 1 . amplify_resonance 7 | . . . . . . . . . . . . . . . . . 1 . . 6 . disable_weapons 2 | . . . . . . . . . . . . . . . . . 2 . . . . overwrite_iff 7 | . . . . . . . . . . . . . . . . . 1 . . 6 . formatsys_high 6 | . . . . . . . . . . . . . . . . . 2 . . 4 . Relay Couplers Released 23 | . . . . . . . 4 . 5 . . 4 . . . . 10 . . . . Machine Destruction 19 | . . . . . . . . . 5 . . 4 . . . . 10 . . . . Programmers 4 | . . . . . . . 4 . . . . . . . . . . . . . . Attached 8 | . . . . . . . . . . . . . 1 . . . 2 . 1 4 . Fabnet Peak Effective % . | . . . . . . . . . . . . . . . . . . . . . . Robots Rewired 13 | . . . . . . . . . 5 . . . . . . . . . . . 8 Allies Hacked 2 | . . . . . . . . . . . . . . . . . . . . . 2 Hacks Repelled . | . . . . . . . . . . . . . . . . . . . . . . Allies | -11 -10 -10 -9 -9 -9 -7 -7 -7 -7 -7 -7 -7 -6 -6 -6 -5 -5 -4 -4 -4 -4 -------- Run | Yrd Mat Min Mat Sto Rec Fac Gar Fac Gar Fac DSF Gar Fac Was Fac Fac Gar Fac Was Fac Ext Total Allies 69 | . . 1 1 10 . . . . 5 . . . . 19 . . 5 1 . 10 17 Largest Group 19 | . . 1 1 10 10 6 6 . 3 2 2 . . 19 19 17 17 11 5 10 16 Highest-Rated Group 800 | . . 31 10 88 88 56 56 . 90 50 50 . . 702 702 631 631 502 295 415 800 Highest-Rated Ally 159 | . . 31 10 16 16 16 16 . 30 25 25 . . 50 50 50 95 95 95 95 159 Total Orders 4 | . . . . . 2 . . . . . 1 . . . . . . . . 1 . STAY 1 | . . . . . 1 . . . . . . . . . . . . . . . . ROAM 1 | . . . . . . . . . . . 1 . . . . . . . . . . FOLLOW 1 | . . . . . 1 . . . . . . . . . . . . . . . . AID 1 | . . . . . . . . . . . . . . . . . . . . 1 . Ally Attacks 814 | . . 7 . . 53 . 79 . 34 . . . . . 120 47 152 . 21 128 173 Total Damage 20487 | . . 123 . . 499 . 814 . 901 . . . . . 2766 1502 4891 . 848 3232 4911 Kills 143 | . . 2 . . 7 . 10 . 8 . . . . . 17 11 21 . 1 25 41 Allies Corrupted 3 | . . . . . . . . . . . . . . . . . . . 1 2 . Allies Melted 1 | . . . . . . . . . . . . . . . . . . . . . 1 Intel | -11 -10 -10 -9 -9 -9 -7 -7 -7 -7 -7 -7 -7 -6 -6 -6 -5 -5 -4 -4 -4 -4 ------- Run | Yrd Mat Min Mat Sto Rec Fac Gar Fac Gar Fac DSF Gar Fac Was Fac Fac Gar Fac Was Fac Ext Robot Analysis Total . | . . . . . . . . . . . . . . . . . . . . . . Derelict Logs Recovered 1 | . . 1 . . . . . . . . . . . . . . . . . . . Drone Launches . | . . . . . . . . . . . . . . . . . . . . . . Drone Recoveries . | . . . . . . . . . . . . . . . . . . . . . . Exploration | -11 -10 -10 -9 -9 -9 -7 -7 -7 -7 -7 -7 -7 -6 -6 -6 -5 -5 -4 -4 -4 -4 ------------- Run | Yrd Mat Min Mat Sto Rec Fac Gar Fac Gar Fac DSF Gar Fac Was Fac Fac Gar Fac Was Fac Ext Turns Passed 22012 | 133 1441 335 2798 1317 2227 176 3867 983 1226 9 131 278 806 1128 395 265 910 58 219 1425 1885 Spaces Moved 10484 | 74 633 194 941 428 748 105 1802 454 409 9 99 200 381 735 227 206 566 39 185 1180 869 Core 104 | 5 . . . . . . . . . . . . . . . . . . . . 99 Treads 4392 | . . . 941 428 691 105 636 190 98 . . . . . . . 69 . . 888 346 Legs 4766 | 69 95 . . . 57 . 1138 264 311 9 99 200 235 673 227 206 497 39 185 211 251 Wheels 732 | . 538 194 . . . . . . . . . . . . . . . . . . . Hover 297 | . . . . . . . . . . . . . 146 57 . . . . . 81 13 Flight 193 | . . . . . . . 28 . . . . . . 5 . . . . . . 160 Fastest Speed 50 | 50 120 130 225 240 240 160 154 119 112 112 112 112 112 52 112 112 68 68 68 68 50 Average Speed 154 | 115 165 144 234 240 254 160 169 159 155 112 112 112 136 108 112 112 104 68 68 83 138 Slowest Speed 401 | 120 400 145 240 240 401 160 261 189 267 112 112 112 198 145 112 112 165 68 68 250 299 Overloaded Moves . | . . . . . . . . . . . . . . . . . . . . . . Propulsion Burnouts . | . . . . . . . . . . . . . . . . . . . . . . Robots Hopped . | . . . . . . . . . . . . . . . . . . . . . . Cave-ins Triggered . | . . . . . . . . . . . . . . . . . . . . . . Exploration Rate (%) 48 | 4 86 63 76 66 90 3 82 17 48 . 85 35 14 95 11 6 72 2 87 38 44 Regions Visited 21 Branch Regions 4 Pre-discovered Areas 6 | . . 1 1 . 4 . . . . . . . . . . . . . . . . Known Exits Taken 6 | . . . 1 1 . 1 . 1 . 1 . . . . . 1 . . . . . Unknown Exits Taken 6 | 1 1 1 . . 1 . . . . . . . . . 1 . . . . 1 . Scrap Searched 1 | . . 1 . . . . . . . . . . . . . . . . . . . Spaces Dug 115 | . . . . . . . . . 12 . . 19 2 48 . 24 . . . 8 2 Terrain Destroyed 910 | . 2 . 9 16 . . 34 2 45 . . 56 15 201 38 36 4 . 168 218 66 Melee 2 | . . . . . . . . . . . . . . . . . . . . . 2 Projectile 114 | . . . 9 . . . 1 2 2 . . . 15 16 2 . . . . 3 64 AOE 794 | . 2 . . 16 . . 33 . 43 . . 56 . 185 36 36 4 . 168 215 . Terrain Rammed . | . . . . . . . . . . . . . . . . . . . . . . Walls Destroyed . | . . . . . . . . . . . . . . . . . . . . . . Machines Disabled . | . . . . . . . . . . . . . . . . . . . . . . Actions | -11 -10 -10 -9 -9 -9 -7 -7 -7 -7 -7 -7 -7 -6 -6 -6 -5 -5 -4 -4 -4 -4 --------- Run | Yrd Mat Min Mat Sto Rec Fac Gar Fac Gar Fac DSF Gar Fac Was Fac Fac Gar Fac Was Fac Ext Total 14654 | 96 927 232 1275 595 1071 113 2455 581 885 8 113 237 596 908 336 232 826 69 239 1470 1390 Wait 2518 | . 168 17 116 82 296 1 490 53 355 . 1 20 152 41 78 14 168 26 22 96 322 Move 10464 | 73 632 193 940 427 747 105 1799 453 408 8 98 199 381 734 226 205 565 39 184 1179 869 Hop . | . . . . . . . . . . . . . . . . . . . . . . Pick Up 156 | 5 36 5 16 6 8 2 14 3 1 . 3 1 3 12 1 1 11 . 2 13 13 Fast Attach 68 | 7 4 1 9 3 1 . . 1 1 . . . 5 2 . . 1 . 1 13 19 Attach 56 | . 3 . 3 1 1 4 4 . 3 . . . 2 1 1 1 2 2 1 11 16 Detach 14 | . . . . . 1 1 4 . . . . . . 1 . . . . . 2 5 Swap 129 | . 8 1 23 4 1 . 3 1 6 . . 3 4 16 3 2 11 . 8 30 5 Drop 177 | . 23 6 28 8 13 . 16 2 6 . 3 2 4 9 . . 15 . 1 24 17 Fire 852 | 11 53 9 129 64 3 . 100 64 57 . 4 8 31 89 13 9 40 2 20 78 68 Melee 28 | . . . . . . . . . . . . . . . . . . . . 19 9 Ram 11 | . . . . . . . . . . . . . 10 . 1 . . . . . . Kick 15 | . . . . . . . . 2 . . . . 4 3 3 . . . . 1 2 Crush 20 | . . . 11 . . . . 2 . . . . . . . . . . . 4 3 Escape Stasis 72 | . . . . . . . 24 . 17 . 4 4 . . 10 . 13 . . . . Rewire 74 | . . . . . . . 1 . 31 . . . . . . . . . . . 42 Trap . | . . . . . . . . . . . . . . . . . . . . . . Miscellaneous . | . . . . . . . . . . . . . . . . . . . . . . Route ------- -11/Scrapyard -10/Materials (discovered 6 exits: *Mat x3 / [*Min x2] / Sub) -10/Mines -9/Materials (discovered 5 exits: *Mat x3 / *Min / *Sto) -9/Storage -9/Recycling -7/Factory -7/Garrison (discovered 3 exits: *Fac x3) -7/Factory (discovered 3 exits: *Low x2 / Gar) -7/Garrison -7/Factory -7/DSF -7/Garrison -6/Factory -6/Waste -6/Factory (discovered 2 exits: *Fac / [*Low]) -5/Factory (discovered 2 exits: [*Upp] / Gar) -5/Garrison (discovered 3 exits: *Fac x3) -4/Factory -4/Waste -4/Factory (discovered 4 exits: *Res x2 / *Upp / *Ext) -4/Extension (discovered 1 exit: *Res) History --------- Turn | Location | Event 3 | -11/Scrapyard | Discovered new exit (range 15) 134 | -11/Scrapyard | Entered Materials 309 | -10/Materials | Build established: Mutant 678 | -10/Materials | Discovered new exit (range 10) 711 | -10/Materials | Discovered new exit (range 16) 949 | -10/Materials | Discovered new exit (range 4) 1080 | -10/Materials | Discovered new exit (range 5) 1232 | -10/Materials | Learned Storage trap positions 1290 | -10/Materials | Learned Recycling recycling unit intel 1376 | -10/Materials | Identified exit to Subcaves 1406 | -10/Materials | Loaded intel: 13 trap records 1407 | -10/Materials | Discovered new exit (range 10) 1434 | -10/Materials | Learned Storage stockpile data 1454 | -10/Materials | Learned 4 Subcaves zone layouts 1521 | -10/Materials | Learned 4 Recycling zone layouts 1575 | -10/Materials | Entered Mines 1578 | -10/Mines | Received a Mining Laser from a helpful Derelict 1731 | -10/Mines | Joined a pair of Derelicts in attacking an 0b10 outpost 1780 | -10/Mines | Lost 3 allies 1828 | -10/Mines | Core integrity fell below 50% 1860 | -10/Mines | Found a damaged Exp. Sensor Array with a note attached 1864 | -10/Mines | Found Prototype Device 1864 | -10/Mines | Identified Exp. Sensor Array 1888 | -10/Mines | Learned location of Zion (-6) 1897 | -10/Mines | Discovered new exit (range 9) 1910 | -10/Mines | Entered Materials 1910 | -9/Materials | Evolved 2 slots: Propulsion x1, Utility x1 2371 | -9/Materials | Discovered new exit (range 6) 2627 | -9/Materials | Discovered new exit (range 8) 3299 | -9/Materials | Discovered new exit (range 6) 3812 | -9/Materials | Discovered new exit (range 9) 3940 | -9/Materials | Identified exit to Materials 4191 | -9/Materials | Learned Storage stockpile data 4232 | -9/Materials | Identified exit to Mines 4232 | -9/Materials | Identified exit to Storage 4339 | -9/Materials | Learned 4 Recycling zone layouts 4708 | -9/Materials | Entered Storage 4709 | -9/Storage | Identified exit to Recycling 4710 | -9/Storage | Loaded intel: 11 trap records 4800 | -9/Storage | Garrison activated, responded to threat 5226 | -9/Storage | Found Prototype Launcher 5226 | -9/Storage | Identified Scatter Rocket Array 5354 | -9/Storage | Used back door to open Recycling access 5539 | -9/Storage | Core integrity fell below 50% 5559 | -9/Storage | Repaired Adv. Treads 5608 | -9/Storage | Repaired Adv. Treads 5746 | -9/Storage | Build established: Scavenger-Mutant 5884 | -9/Storage | Assisted by bots powering up and referring to "LRC-V3" 6025 | -9/Storage | Entered Recycling 6025 | -9/Recycling | Accompanied by 10 allies 6026 | -9/Recycling | Identified exit to Scraptown 6027 | -9/Recycling | Loaded intel: 3 recycling unit locations 6183 | -9/Recycling | Build established: Commander-Mutant 6750 | -9/Recycling | Discovered new exit (range 12) 6843 | -9/Recycling | Scanned before Scraplab entrance 6938 | -9/Recycling | Angered Scraplab inhabitants 6943 | -9/Recycling | Found Prototype Device 6943 | -9/Recycling | Identified Scrap Engine 6979 | -9/Recycling | Lost 4 allies 7428 | -9/Recycling | Build established: Commander-Construct 7859 | -9/Recycling | Learned Materials repair station intel 7935 | -9/Recycling | Learned location of Mines (-9) 8001 | -9/Recycling | Learned 2 Storage zone layouts 8055 | -9/Recycling | Learned Storage trap positions 8101 | -9/Recycling | Learned Storage stockpile data 8182 | -9/Recycling | Learned 2 Materials zone layouts 8252 | -9/Recycling | Entered Factory 8252 | -7/Factory | Accompanied by 6 allies 8252 | -7/Factory | Evolved 4 slots: Propulsion x2, Utility x2 8427 | -7/Factory | Identified exit to Garrison 8428 | -7/Factory | Entered Garrison 8428 | -7/Garrison | Accompanied by 6 allies 8907 | -7/Garrison | Build established: Construct 9070 | -7/Garrison | Triggered checkpoint 9326 | -7/Garrison | Triggered checkpoint 9385 | -7/Garrison | Discovered new exit (range 9) 9430 | -7/Garrison | Spotted B-75 Beast 9458 | -7/Garrison | Allies destroyed B-75 Beast 9632 | -7/Garrison | Triggered checkpoint 9725 | -7/Garrison | Discovered new exit (range 10) 9756 | -7/Garrison | Triggered checkpoint 9998 | -7/Garrison | Triggered checkpoint 10001 | -7/Garrison | Discovered new exit (range 14) 10188 | -7/Garrison | Triggered checkpoint 11004 | -7/Garrison | Rescued a captive Derelict 11006 | -7/Garrison | Rescued a captive Derelict 11907 | -7/Garrison | Attempted to access garrison exit controls, blocked by remote lockdown 12078 | -7/Garrison | Attempted to access garrison exit controls, blocked by remote lockdown 12295 | -7/Garrison | Entered Factory 12695 | -7/Factory | First assault squad dispatched 13013 | -7/Factory | Discovered new exit (range 16) 13090 | -7/Factory | Garrison activated, responded to threat 13171 | -7/Factory | Identified exit to Lower Caves 13225 | -7/Factory | Garrison activated, responded to threat 13269 | -7/Factory | Destroyed 7 combat bots 13273 | -7/Factory | Identified exit to Garrison 13278 | -7/Factory | Entered Garrison 13696 | -7/Garrison | Triggered checkpoint 13772 | -7/Garrison | Triggered checkpoint 13778 | -7/Garrison | Core integrity fell below 50% 14010 | -7/Garrison | Triggered checkpoint 14034 | -7/Garrison | Triggered checkpoint 14050 | -7/Garrison | Triggered checkpoint 14124 | -7/Garrison | Triggered checkpoint 14316 | -7/Garrison | Triggered checkpoint 14330 | -7/Garrison | Triggered checkpoint 14454 | -7/Garrison | Discovered new exit (range 4) 14479 | -7/Garrison | Installed Relay Interface Framework 14504 | -7/Garrison | Entered Factory 14504 | -7/Factory | Accompanied by 2 allies 14512 | -7/Factory | Identified exit to DSF 14513 | -7/Factory | Entered DSF 14513 | -7/DSF | Encountered a pitched battle between 0b10 and Warlord forces 14513 | -7/DSF | Accompanied by 2 allies 14545 | -7/DSF | Sterilization system engaged 14565 | -7/DSF | Ambient heat levels rising (+10) 14569 | -7/DSF | Spotted Executioner 14578 | -7/DSF | Destroyed Executioner 14580 | -7/DSF | Ambient heat levels rising (+10) 14585 | -7/DSF | Found Prototype Processor 14587 | -7/DSF | Found Prototype Processor 14589 | -7/DSF | Lost 9 allies 14595 | -7/DSF | Ambient heat levels rising (+10) 14610 | -7/DSF | Ambient heat levels rising (+10) 14625 | -7/DSF | Ambient heat levels rising (+10) 14627 | -7/DSF | Discovered new exit (range 16) 14640 | -7/DSF | Ambient heat levels rising (+10) 14644 | -7/DSF | Entered Garrison 14668 | -7/Garrison | Triggered checkpoint 14697 | -7/Garrison | Garrison Relay disabled 14752 | -7/Garrison | Triggered checkpoint 14900 | -7/Garrison | Discovered new exit (range 12) 14917 | -7/Garrison | Core integrity fell below 20% 14922 | -7/Garrison | Entered Factory 14922 | -6/Factory | Evolved 2 slots: Power x1, Weapon x1 15515 | -6/Factory | System corruption reached 10% 15728 | -6/Factory | Sucked down chute 15728 | -6/Factory | Entered Waste 15768 | -6/Waste | Spotted C-40 Crusher 15779 | -6/Waste | Found Unknown Launcher 15780 | -6/Waste | Identified Gamma Bomb Array 15841 | -6/Waste | Destroyed C-40 Crusher 15850 | -6/Waste | Spotted C-40 Crusher 15870 | -6/Waste | Spotted C-40 Crusher 16020 | -6/Waste | Spotted C-40 Crusher 16187 | -6/Waste | Spotted C-40 Crusher 16246 | -6/Waste | Destroyed C-40 Crusher 16257 | -6/Waste | Spotted C-40 Crusher 16277 | -6/Waste | Destroyed C-40 Crusher 16285 | -6/Waste | Destroyed C-40 Crusher 16307 | -6/Waste | Destroyed C-40 Crusher 16387 | -6/Waste | Destroyed C-40 Crusher 16505 | -6/Waste | Discovered new exit (range 13) 16526 | -6/Waste | Warlord forces began an assault 16856 | -6/Waste | Entered Factory 16856 | -6/Factory | Accompanied by 19 allies 17049 | -6/Factory | Discovered new exit (range 11) 17069 | -6/Factory | Discovered new exit (range 11) 17206 | -6/Factory | First assault squad dispatched 17251 | -6/Factory | Entered another Factory area 17251 | -5/Factory | Accompanied by 17 allies 17251 | -5/Factory | Evolved 2 slots: Propulsion x1, Utility x1 17355 | -5/Factory | Discovered new exit (range 4) 17494 | -5/Factory | Identified exit to Garrison 17516 | -5/Factory | Entered Garrison 17516 | -5/Garrison | Accompanied by 17 allies 17635 | -5/Garrison | Spotted B-75 Beast 17638 | -5/Garrison | Triggered checkpoint 17661 | -5/Garrison | Allies destroyed B-75 Beast 17676 | -5/Garrison | Triggered checkpoint 17702 | -5/Garrison | Triggered checkpoint 17730 | -5/Garrison | Lost 7 allies 17806 | -5/Garrison | Triggered checkpoint 17895 | -5/Garrison | Garrison Relay disabled 17993 | -5/Garrison | Discovered new exit (range 12) 18113 | -5/Garrison | Found embedded Infiltrators 18140 | -5/Garrison | Triggered checkpoint 18161 | -5/Garrison | Garrison Relay disabled 18193 | -5/Garrison | P-70 Sage assimilated allied 65-VC5(g) 18243 | -5/Garrison | Discovered new exit (range 13) 18258 | -5/Garrison | Expanded RIF knowledge: Coupler Efficiency 18362 | -5/Garrison | Triggered checkpoint 18378 | -5/Garrison | Garrison Relay disabled 18399 | -5/Garrison | Discovered new exit (range 11) 18426 | -5/Garrison | Entered Factory 18426 | -4/Factory | Accompanied by 10 allies 18426 | -4/Factory | Evolved 2 slots: Utility x2 18467 | -4/Factory | Build established: Bothacker-Construct 18477 | -4/Factory | Fabricated M-13 Machinist (x1) 18484 | -4/Factory | Manually triggered Chute Trap 18484 | -4/Factory | Sucked down chute 18484 | -4/Factory | Entered Waste 18499 | -4/Waste | EMP discharged 18512 | -4/Waste | Spotted C-40 Crusher 18512 | -4/Waste | Spotted C-40 Crusher 18519 | -4/Waste | Spotted C-40 Crusher 18528 | -4/Waste | Destroyed C-40 Crusher 18542 | -4/Waste | Spotted C-40 Crusher 18568 | -4/Waste | Destroyed C-40 Crusher 18599 | -4/Waste | EMP discharged 18599 | -4/Waste | System corruption reached 10% 18614 | -4/Waste | Spotted C-40 Crusher 18620 | -4/Waste | Spotted C-40 Crusher 18629 | -4/Waste | Destroyed C-40 Crusher 18641 | -4/Waste | Destroyed C-40 Crusher 18643 | -4/Waste | Destroyed C-40 Crusher 18655 | -4/Waste | Allies destroyed C-40 Crusher 18666 | -4/Waste | Discovered new exit (range 16) 18699 | -4/Waste | EMP discharged 18703 | -4/Waste | Entered Factory 18703 | -4/Factory | Accompanied by 4 allies 18763 | -4/Factory | 8 allies followed down the chute 18813 | -4/Factory | 3 allies followed down the chute 18904 | -4/Factory | Lost 3 allies 19025 | -4/Factory | Lost 4 allies 19209 | -4/Factory | Discovered new exit (range 8) 19228 | -4/Factory | Identified exit to Research 19389 | -4/Factory | Discovered new exit (range 9) 19403 | -4/Factory | Identified exit to Upper Caves 19453 | -4/Factory | First assault squad dispatched 19485 | -4/Factory | Spotted B-86 Titan 19503 | -4/Factory | Build established: Construct 19602 | -4/Factory | Spotted B-86 Titan 19704 | -4/Factory | Lost 3 parts (1n1u1w) 19727 | -4/Factory | Assembled infested ambush trap array 19832 | -4/Factory | Lost 3 parts (1p1n1u) 19914 | -4/Factory | Discovered exit to Research (range 3) 19973 | -4/Factory | Lost 4 parts (3u1w) 19983 | -4/Factory | Build established: Mutant 20103 | -4/Factory | Discovered new exit (range 15) 20128 | -4/Factory | Entered Extension 20190 | -4/Extension | Rescued a captive Derelict 20200 | -4/Extension | Rescued a captive Derelict 20201 | -4/Extension | Rescued a captive Derelict 20214 | -4/Extension | Rescued a captive Derelict 20216 | -4/Extension | Rescued a captive Derelict 20526 | -4/Extension | Rescued a captive Derelict 20535 | -4/Extension | Core integrity fell below 50% 20674 | -4/Extension | Build established: Hacker-Construct 20721 | -4/Extension | Energy Cycler disabled 20721 | -4/Extension | Rescued a captive Derelict 20721 | -4/Extension | Rescued a captive Derelict 20721 | -4/Extension | Rescued a captive Derelict 20721 | -4/Extension | Rescued a captive Derelict 20722 | -4/Extension | Rescued a captive Derelict 20723 | -4/Extension | Rescued a captive Derelict 20725 | -4/Extension | Rescued a captive Derelict 20728 | -4/Extension | Rescued a captive Derelict 20732 | -4/Extension | Rescued a captive Derelict 20732 | -4/Extension | Rescued a captive Derelict 20754 | -4/Extension | Rescued A7 21055 | -4/Extension | Build established: Commander-Construct 21128 | -4/Extension | First assault squad dispatched 21228 | -4/Extension | Disrupted transfer network 21237 | -4/Extension | Identified Exp. Targeting Computer 21238 | -4/Extension | Identified Exp. Core Analyzer 21247 | -4/Extension | P-70 Sage assimilated allied 42-8FS(l) 21287 | -4/Extension | Lost 9 allies 21501 | -4/Extension | Spotted B-86 Titan 21511 | -4/Extension | Extracted ID and sensor layout for unrecognized location from A7's data core 21520 | -4/Extension | Destroyed B-86 Titan 21596 | -4/Extension | Build established: Construct 21639 | -4/Extension | Discovered exit to Research (range 15) 21769 | -4/Extension | High security lockdown imminent 21828 | -4/Extension | Core integrity fell below 20% 21849 | -4/Extension | High security lockdown engaged 21861 | -4/Extension | Lost 22 parts (5p7n5u5w) 22013 | -4/Extension | Destroyed by G-67 Veteran with Field Laser Last Messages --------------- Shielding. 21995_ Dropped Imp. Treads. 21996_ Arm. Scrap Engine consumes Imp. Treads. 21999_ Acquired Cesium-ion Thruster. 22003_ System corrupted: Matter fused (-8). 22004_ Slammed into G-67 Veteran. 22006_ Slammed into G-73 Enforcer. 22008_ Lgt. Ion Engine destroyed. 22008_ C-30 ARC bursts open, deploying its payload. 22008_ G-73 Enforcer unfolds itself. 22008_ B-60 Warrior unfolds itself. 22008_ G-67 Veteran unfolds itself. 22008_ C-30 ARC bursts open, deploying its payload. 22008_ G-73 Enforcer unfolds itself. 22008_ G-67 Veteran unfolds itself. 22008_ M-36 Artificer unfolds itself. 22008_ System Guard destroyed. 22013_ E-15 Imp destroyed. Map ----- +----------------------------------------------------+ | | | | | | | | | | | | | | | | | | | | | | | | | | | | | | | ????????????????????????#######??????????????????? | | ####???????????????????###"""#######?????????????? | | ######????????????????####"Y"#######?????????????# | | # ####????????????????###= ** =[=##???????????### | | ##????????????????##"!!! *|[""##???????????# % | | # ##????????????????##T==[]![|""##???????????# | | #T####????????????????##"!/!!!!/T"##???????????# * | | ######???????###??????###* !]!!""##???????????# | | ####???????###% ##????###]!==*/!""##???????????# | | #######????### ###??####*%ggg/=*%=##???????????# | | ########### # ##### ##@g gg b###??#########/# | | #########+############+######%############# % | | ! % ! %% *=[ !" ###### / # | | %%= % *%!"" % + # | | %%" |!="%" ###### + | | !############################# #### # ### | | ################################## T#####% ### | | #######?????????????????????????## ###### % ### | | ????????????????????????????????## ###?########### | | ????????????????????????????????#####??########### | | ????????????????????????????????#####???########?? | | ?????????????????????????????????????????????????? | | ?????????????????????????????????????????????????? | | ?????????????????????????????????????????????????? | | ?????????????????????????????????????????????????? | | ?????????????????????????????????????????????????? | | ?????????????????????????????????????????????????? | | ?????????????????????????????????????????????????? | | ?????????????????????????????????????????????????? | | ?????????????????????????????????????????????????? | | ?????????????????????????????????????????????????? | | ?????????????????????????????????????????????????? | | ?????????????????????????????????????????????????? | | ?????????????????????????????????????????????????? | | ???????????????????????????????????????????? #???? | +----------------------------------------------------+ Best States ------------- Heat Dissipation 75 Energy Generation 40 Energy Capacity 676 Matter Stores 300 Matter Capacity 300 Sight Range 20 Terrain Scan Density 10 Jamming Range 16 EM Shielding 2 Corruption Containment 16 Armor Coverage 225 Resistance: KI 25 Core Shielding 30 Propulsion Shielding 66 Phase Shifting 15 Evasion (%) 66 Targeting Accuracy 16 Core Analysis 8 Recoil Reduction 6 Salvage Targeting 4 Offensive Hacking 12 Defensive Hacking 24 Relay Coupler Types 3 Relay Coupler Value 101 Authchip Count 1 Item Schematics ----------------- Hrd. Light Armor Plating | -9/Materials | Scanalyzed Carbon-fiber Leg | -9/Materials | Scanalyzed Adv. Treads | -9/Materials | Scanalyzed Adv. Targeting Computer | -9/Materials | Scanalyzed Mic. Nuclear Core | -9/Storage | Hacked Robot Schematics ------------------ M-13 Machinist | -10/Materials | Hacked Fabricated ------------ M-13 Machinist | x1 | -4/Factory | Authchip Alien Tech Used ----------------- None Achievements -------------- None Challenges ------------ None Game ------ Seed PhysicsArmoredOptics Manual? 0 Play Time 03:03:25 Cumulative 750.7 hours Start 2024.09.27 @ 14:30:31 End 2024.09.27 @ 17:38:05 Sessions 1 Manual Loads 0 Difficulty Rogue Special Mode None Game No. 177 Rogue 39 Adventurer 138 Explorer 0 Win Type - Total 13 Types 8/0/1/2/1/0/0/0/1 Lore% 79 Gallery% 84 Achievement% 76 Wizard Run 0 Options --------- Layout 2 ASCII 0 Keyboard 0 Movement Mouse Keybinds 0 Fullscreen 1 Font 24/Smallcaps Map View 50x49 Zoom Use 0% Tactical HUD 1 Map Filters NONE Filters NONE Steam 1 RUN: dead8730-fe45-42a8-88f1-65680b5279b6